bitfinex-derivatives/quotes_ETHF0:USTF0_20240924
["timestamp","ask_amount","ask_price","bid_price","bid_amount"]
[1727186741511,6.9078,2617.0,2615.4,0.89364007]
[1727186741512,0.5049,2617.4,2615.9,0.98]
[1727186741513,6.9078,2616.6,2615.9,0.98]
[1727186741701,6.9078,2616.6,2615.4,0.89364007]
[1727186741702,3.2078,2616.3,2615.4,0.89364007]
[1727186742005,4.08221,2616.2,2616.1,4.41758033]
[1727186742200,0.38228,2615.7,2615.3,0.3957]
[1727186742400,3.7,2616.2,2615.4,4.41758033]
[1727186742401,3.2078,2616.1,2615.4,4.41758033]
[1727186742603,3.2078,2615.6,2615.0,3.2078]
[1727186742793,3.2078,2615.6,2615.1,4.38010273]
[1727186742992,3.2078,2615.6,2615.5,4.38010273]
[1727186743201,3.2078,2615.6,2615.0,3.2078]
[1727186743408,3.2078,2615.6,2615.1,4.38010273]
[1727186743409,3.5901,2615.6,2615.1,4.38010273]
[1727186743705,3.2078,2615.6,2615.0,3.2078]
[1727186743893,3.2078,2615.6,2615.2,4.43898511]
[1727186744097,3.2078,2615.6,2615.1,4.43898511]
[1727186744296,3.2078,2615.6,2614.9,3.6035]
[1727186744503,3.2078,2615.6,2615.3,4.43898511]
[1727186744701,3.2078,2615.6,2615.1,4.43898511]
[1727186744902,3.2078,2615.5,2614.9,0.3957]
[1727186745193,3.2078,2615.2,2615.0,4.08277178]
[1727186745397,3.2078,2615.2,2615.0,0.96097178]
[1727186745398,7.90637,2615.1,2615.0,0.96097178]
[1727186745700,7.90637,2615.1,2613.9,1e-05]
[1727186745701,0.38246,2614.6,2613.9,1e-05]
[1727186746008,3.2078,2614.4,2614.0,4.19674156]
[1727186746597,3.2078,2614.7,2614.0,4.19674156]
[1727186747000,3.2078,2614.7,2614.0,4.61584156]
[1727186747001,0.38246,2614.6,2614.0,4.61584156]
[1727186747200,3.2078,2614.4,2614.0,4.19674156]
[1727186747394,0.3825,2614.3,2614.0,4.19674156]
[1727186747595,3.59028,2614.4,2614.0,4.19674156]
[1727186747801,0.3825,2614.2,2614.0,4.19674156]
[1727186748002,0.38249,2614.3,2614.0,4.19674156]
[1727186748201,0.38253,2614.0,2613.9,1e-05]
[1727186748413,3.2078,2614.1,2613.9,1e-05]
[1727186748903,3.59033,2614.1,2613.9,1e-05]
[1727186749101,3.2078,2614.1,2614.0,3.99464618]
[1727186749609,3.2078,2614.1,2614.0,7.82024618]
[1727186749914,3.2078,2614.4,2614.0,7.82024618]
[1727186750098,3.2078,2614.1,2614.0,3.99464618]
[1727186750304,3.2078,2614.1,2613.9,1e-05]
[1727186750499,3.2078,2614.3,2614.1,4.03766805]
[1727186750705,3.2078,2614.3,2614.0,4.42019805]
[1727186751005,3.2078,2614.3,2614.2,4.2516903]
[1727186751006,3.59029,2614.3,2614.2,4.2516903]
[1727186751306,1.33876,2614.2,2614.1,4.2516903]
[1727186751507,0.38253,2614.0,2613.9,1e-05]
[1727186751713,3.59033,2614.0,2613.9,1e-05]
[1727186751905,7.41593,2614.0,2613.9,1e-05]
[1727186752409,3.2078,2614.0,2613.9,1e-05]
[1727186752618,3.59033,2614.0,2613.9,1e-05]
[1727186752818,7.41593,2614.0,2613.9,1e-05]
[1727186753116,14.37227,2614.0,2613.9,1e-05]
[1727186753307,14.79317,2614.0,2613.9,1e-05]
[1727186754208,18.49317,2614.0,2613.9,1e-05]
[1727186754815,15.74951,2614.0,2613.9,1e-05]
[1727186755121,14.79317,2614.0,2613.9,1e-05]
[1727186755312,3.2078,2614.0,2613.9,1e-05]
[1727186755515,3.59033,2614.0,2613.9,1e-05]
[1727186756116,8.37227,2614.0,2613.9,1e-05]
[1727186756305,7.41593,2614.0,2613.9,1e-05]
[1727186756509,14.37227,2614.0,2613.9,1e-05]
[1727186756812,15.32861,2614.0,2613.9,1e-05]
[1727186757016,19.02861,2614.0,2613.9,1e-05]
[1727186757214,12.07227,2614.0,2613.9,1e-05]
[1727186757415,8.37227,2614.0,2613.9,1e-05]
[1727186758008,18.07227,2614.0,2613.9,1e-05]
[1727186758208,19.02861,2614.0,2613.9,1e-05]
[1727186758909,19.02861,2614.0,2612.6,0.4002]
[1727186758910,16.7334,2614.0,2612.6,0.4002]
[1727186759111,3.2078,2612.7,2612.0,0.4119]
[1727186759319,3.2078,2612.5,2611.8,0.38285]
[1727186759519,4.65675,2612.9,2612.1,4.05169351]
[1727186759520,0.38279,2612.2,2612.1,4.05169351]
[1727186759719,4.16462,2612.7,2611.7,0.0376832]
[1727186759720,3.2078,2612.7,2611.7,0.0376832]
[1727186759912,0.38276,2612.5,2612.2,0.38279]
[1727186760112,3.2078,2612.7,2612.1,4.32110558]
[1727186760318,3.2078,2612.7,2612.3,3.44684515]
[1727186760719,0.38278,2612.3,2612.2,4.32110558]
[1727186760915,3.2078,2612.4,2611.8,0.38285]
[1727186761122,3.2078,2612.4,2611.7,3.2454832]
[1727186761322,0.38285,2611.8,2611.7,0.0376832]
[1727186761514,3.2078,2612.0,2611.7,0.0376832]
[1727186761720,0.38282,2612.1,2611.8,8.35199812]
[1727186761925,0.38282,2612.1,2611.7,7.38583132]
[1727186761926,3.2078,2612.4,2612.3,0.38278]
[1727186762125,13.268,2613.1,2612.3,6.0]
[1727186762126,3.2078,2613.1,2612.3,6.0]
[1727186762423,3.2078,2613.1,2612.6,3.2078]
[1727186762622,3.2078,2613.1,2612.3,4.13956177]
[1727186762623,3.2078,2613.1,2612.3,4.52233177]
[1727186762824,3.2078,2612.8,2612.1,0.4245]
[1727186763015,3.7,2613.1,2612.4,4.14247522]
[1727186763217,0.38266,2613.1,2612.8,0.3827]
[1727186763532,3.2078,2613.2,2613.1,0.38266]
[1727186764023,3.2078,2613.6,2612.7,4.48324686]
[1727186764228,0.38263,2613.4,2613.1,0.38266]
[1727186764522,3.2078,2614.0,2613.2,4.06094686]
[1727186764726,3.2078,2614.0,2613.6,0.38258]
[1727186764923,3.59034,2614.0,2613.7,0.38257]
[1727186765125,3.59034,2614.0,2613.7,4.21731107]
[1727186765126,3.2078,2614.0,2613.7,4.21731107]
[1727186765321,1.33897,2613.8,2613.7,4.21731107]
[1727186765521,3.2078,2614.0,2613.2,0.8543]
[1727186765718,0.38257,2613.8,2613.5,0.38259]
[1727186765915,0.38255,2613.9,2613.3,12.09109066]
[1727186766123,3.59034,2614.0,2613.7,0.38258]
[1727186766318,3.2078,2614.0,2613.3,8.03325929]
[1727186766522,3.2078,2614.0,2613.8,4.05783137]
[1727186766731,3.2078,2615.0,2613.9,7.0334]
[1727186766925,0.95595,2615.1,2613.9,7.0334]
[1727186766926,3.2078,2614.7,2614.0,0.86]
[1727186767124,0.95596,2615.1,2614.0,0.86]
[1727186767125,3.2078,2615.0,2614.0,0.86]
[1727186767332,3.2078,2615.0,2614.1,4.07050655]
[1727186767531,4.16381,2615.0,2614.2,0.4263]
[1727186767727,3.2078,2615.0,2614.2,0.4263]
[1727186767927,3.2078,2615.0,2614.3,4.20687832]
[1727186768134,3.2078,2614.7,2614.3,4.20687832]
[1727186768327,3.2078,2614.7,2614.5,0.38245]
[1727186768528,3.2078,2614.7,2614.6,0.38244]
[1727186768831,0.38241,2614.9,2614.6,4.14622455]
[1727186769034,3.2078,2615.1,2614.2,3.6341]
[1727186769227,4.104,2615.7,2614.4,3.99400275]
[1727186769228,0.38245,2614.6,2614.4,3.99400275]
[1727186769431,0.38246,2614.5,2614.3,4.37648275]
[1727186769630,3.2078,2614.9,2614.4,3.8248]
[1727186769824,0.192,2615.8,2614.5,7.20180275]
[1727186769825,3.2078,2615.6,2614.5,7.20180275]
[1727186770030,0.38234,2615.4,2615.1,0.38236]
[1727186770238,3.2078,2615.6,2615.2,0.38235]
[1727186770239,0.38232,2615.5,2615.2,0.38235]
[1727186770433,3.2078,2615.6,2615.2,3.79656349]
[1727186770748,3.2078,2615.6,2615.1,4.31593926]
[1727186770943,3.2078,2615.6,2615.3,4.36512159]
[1727186771237,0.38234,2615.3,2615.2,4.31593926]
[1727186771440,0.38244,2614.6,2614.5,7.95265929]
[1727186771733,3.2078,2614.8,2614.4,4.36512159]
[1727186771934,4.65588,2615.3,2614.4,4.36512159]
[1727186771935,3.2078,2614.9,2614.4,4.36512159]
[1727186772138,3.2078,2614.5,2614.1,3.55377201]
[1727186772439,4.16406,2614.2,2613.5,3.5904]
[1727186772828,3.2078,2614.2,2613.6,4.04854709]
[1727186773029,3.59031,2614.2,2613.6,4.04854709]
[1727186773237,3.2078,2614.5,2613.6,0.95648]
[1727186773435,0.38248,2614.4,2614.0,0.38252]
[1727186773734,3.2078,2614.5,2613.5,3.6405]
[1727186773735,3.2078,2614.5,2614.2,0.38249]
[1727186773938,3.2078,2614.5,2614.1,4.11502306]
[1727186773939,0.38247,2614.4,2614.1,4.11502306]
[1727186774235,3.2078,2614.5,2614.3,0.15423076]
[1727186774435,0.38248,2614.4,2614.2,4.19666837]
[1727186774636,3.59027,2614.5,2613.7,0.9122]
[1727186774833,0.95608,2614.8,2614.4,0.38247]
[1727186774834,3.59022,2614.8,2614.4,0.38247]
[1727186775038,3.59022,2614.8,2614.6,0.38244]
[1727186775039,3.2078,2614.8,2614.6,0.38244]
[1727186775237,3.2078,2614.8,2614.2,3.2078]
[1727186775238,3.2078,2614.8,2614.5,4.57912837]
[1727186775439,3.2078,2614.8,2614.7,4.19676096]
[1727186775940,3.2078,2614.8,2614.4,0.3992]
[1727186776142,3.59022,2614.8,2614.4,0.78167]
[1727186776342,3.7,2615.7,2614.6,0.38244]
[1727186776343,3.2078,2615.3,2614.6,0.38244]
[1727186776533,3.2078,2615.3,2615.0,0.38237]
[1727186776735,3.2078,2615.6,2614.7,3.84025744]
[1727186776935,0.38232,2615.5,2615.1,4.393028]
[1727186777132,0.38232,2615.5,2615.1,0.38236]
[1727186777438,3.2078,2615.6,2615.2,4.393028]
[1727186777633,3.2078,2615.6,2615.2,4.775378]
[1727186777935,3.2078,2615.6,2615.2,0.38235]
[1727186777936,0.3823,2615.6,2615.2,0.38235]
[1727186778145,0.38228,2615.8,2615.4,0.38233]
[1727186778334,3.2078,2615.9,2615.3,4.3683652]
[1727186778648,0.38228,2615.8,2615.5,0.01261197]
[1727186778843,0.38228,2615.8,2615.4,0.84452]
[1727186778844,3.2078,2615.9,2615.4,0.4622]
[1727186779140,0.3823,2615.6,2615.5,4.41356814]
[1727186779342,0.38231,2615.5,2615.1,0.38237]
[1727186779535,0.38231,2615.5,2615.3,4.41356814]
[1727186779736,0.38231,2615.5,2615.2,4.41356814]
[1727186779937,0.38233,2615.4,2615.0,0.38238]
[1727186780135,3.59011,2615.6,2615.2,0.38235]
[1727186780329,0.38233,2615.4,2615.3,4.03861303]
[1727186780639,0.38233,2615.4,2615.2,4.03861303]
[1727186780640,4.16356,2615.6,2614.9,3.2078]
[1727186780840,0.38233,2615.4,2614.9,3.2078]
[1727186781044,4.16355,2615.6,2615.1,4.18751718]
[1727186781345,4.16369,2615.3,2614.8,0.4617]
[1727186781747,0.3824,2614.9,2614.8,0.4617]
[1727186782136,0.95594,2615.1,2614.8,0.4617]
[1727186782336,3.2078,2615.3,2614.8,0.4617]
[1727186782743,0.3824,2614.9,2614.8,0.4617]
[1727186782948,0.38252,2614.1,2614.0,0.4298]
[1727186783442,3.2078,2614.4,2614.1,0.38252]
[1727186783743,3.2078,2614.4,2614.2,4.05932313]
[1727186784043,3.2078,2614.4,2614.1,4.24971244]
[1727186784246,3.59028,2614.4,2614.1,4.63222244]
[1727186784444,3.59028,2614.4,2614.1,0.38251]
[1727186784641,3.2078,2614.4,2614.1,4.24971244]
[1727186785148,0.95628,2614.2,2613.0,3.2078]
[1727186785446,0.38271,2612.8,2612.7,4.05673816]
[1727186785838,3.2078,2613.3,2612.7,9.8272]
[1727186786147,4.16439,2613.3,2612.7,7.54082853]
[1727186786353,0.38267,2613.1,2612.7,4.71573853]
[1727186786537,3.2078,2613.3,2612.8,0.3827]
[1727186786741,0.38267,2613.1,2612.8,0.3827]
[1727186786935,0.38265,2613.2,2612.9,4.71570853]
[1727186787244,0.38267,2613.1,2612.9,4.33302853]
[1727186787445,0.38268,2613.0,2612.8,4.38410784]
[1727186787748,0.38265,2613.2,2612.9,0.38269]
[1727186788043,0.38268,2613.0,2612.8,4.38410784]
[1727186788248,3.2078,2612.9,2612.5,0.4276]
[1727186788543,0.38273,2612.7,2612.5,0.4276]
[1727186788757,0.38273,2612.7,2612.6,4.15426072]
[1727186789441,0.38273,2612.7,2612.3,3.2078]
[1727186789442,0.38274,2612.6,2612.5,4.36031188]
[1727186789647,0.38273,2612.7,2612.3,3.59057]
[1727186789947,3.2078,2613.1,2612.5,4.36031188]
[1727186790245,0.38269,2613.0,2612.6,0.38273]
[1727186790444,3.2078,2613.5,2612.8,0.3827]
[1727186790745,3.59047,2613.1,2612.9,3.88664013]
[1727186790943,0.38268,2613.0,2612.9,3.88664013]
[1727186791141,3.2078,2613.1,2612.7,4.22480279]
[1727186791335,0.3827,2612.9,2612.3,3.2078]
[1727186791539,3.2078,2613.1,2612.3,3.2078]
[1727186791742,3.2078,2613.1,2612.8,4.22480279]
[1727186791949,0.95672,2613.0,2612.5,8.00320182]
[1727186792140,3.2078,2613.1,2612.7,0.38271]
[1727186792141,3.59047,2613.1,2612.7,0.38271]
[1727186792336,3.2078,2613.4,2612.9,0.38268]
[1727186792542,0.38264,2613.3,2612.9,0.38268]
[1727186792745,3.2078,2613.4,2613.0,0.66757]
[1727186792746,3.59043,2613.4,2613.0,0.66757]
[1727186792937,3.2078,2613.7,2613.0,0.66757]
[1727186793146,3.2078,2613.7,2613.0,0.2849]
[1727186793338,0.38266,2613.1,2613.0,0.2849]
[1727186793542,0.9567,2613.0,2612.5,4.00619233]
[1727186793736,0.38274,2612.6,2612.5,4.00619233]
[1727186793939,0.9567,2613.0,2612.5,4.00619233]
[1727186794444,0.38274,2612.6,2612.5,4.00619233]
[1727186794638,0.9567,2613.0,2612.5,4.00619233]
[1727186794841,0.38272,2612.8,2612.5,4.00619233]
[1727186795147,0.9567,2613.0,2612.5,4.00619233]
[1727186795348,0.38274,2612.6,2612.2,0.4238]
[1727186795547,0.38279,2612.2,2612.1,3.2078]
[1727186795743,0.38279,2612.3,2612.1,3.2078]
[1727186795943,0.38279,2612.3,2612.2,4.10957433]
[1727186796249,4.16462,2612.7,2612.1,3.2078]
[1727186796250,0.38277,2612.4,2612.1,3.2078]
[1727186796550,0.38276,2612.5,2612.2,4.37515293]
[1727186796744,3.2078,2612.7,2612.2,4.37515293]
[1727186797050,3.2078,2612.7,2612.5,0.38275]
[1727186797239,0.38268,2613.0,2612.3,0.4601]
[1727186797445,3.2078,2613.1,2612.6,4.11481902]
[1727186797645,0.38271,2612.8,2612.4,4.77597798]
[1727186797844,0.3827,2612.9,2612.5,4.49756902]
[1727186798062,3.2078,2613.1,2612.7,4.11481902]
[1727186798240,0.3827,2612.9,2612.6,4.14602399]
[1727186798446,0.38272,2612.7,2612.6,4.14602399]
[1727186798650,0.38274,2612.6,2612.5,4.14602399]
[1727186798852,3.59052,2612.8,2612.6,4.14602399]
[1727186799158,3.2078,2612.8,2612.5,4.43430752]
[1727186799453,3.2078,2612.8,2612.7,4.43430752]
[1727186799454,0.38272,2612.8,2612.7,4.43430752]
[1727186799645,4.1645,2613.1,2612.4,0.4503]
[1727186799646,0.38274,2612.6,2612.4,0.4503]
[1727186799842,0.38274,2612.6,2612.5,4.31180795]
[1727186800048,4.16459,2612.8,2612.2,3.2078]
[1727186800247,4.16459,2612.8,2611.8,0.9088]
[1727186800248,0.38276,2612.5,2611.8,0.9088]
[1727186800541,0.38273,2612.7,2612.4,0.38277]
[1727186800748,3.2078,2612.8,2612.2,4.04390754]
[1727186800951,3.2078,2612.8,2612.5,0.71752848]
[1727186801143,0.38273,2612.7,2612.4,4.18664346]
[1727186801352,3.2078,2612.8,2612.3,4.04390754]
[1727186801545,3.2078,2613.3,2612.6,4.2701618]
[1727186801743,3.2078,2613.6,2613.1,0.38266]
[1727186801951,3.2078,2613.6,2613.0,0.38266]
[1727186801952,0.38263,2613.4,2613.0,0.38266]
[1727186802150,3.2078,2613.6,2613.2,0.18089159]
[1727186802349,3.2078,2613.6,2612.7,4.98022603]
[1727186802350,0.38263,2613.4,2613.1,4.46798603]
[1727186802750,3.2078,2613.9,2612.9,3.7]
[1727186802950,3.2078,2613.9,2613.2,4.18341973]
[1727186803151,3.2078,2613.9,2613.4,3.2078]
[1727186803352,0.38247,2614.5,2614.1,0.38251]
[1727186803654,0.38248,2614.4,2614.2,4.18341973]
[1727186803953,0.38247,2614.5,2614.2,4.18341973]
[1727186804162,0.3825,2614.2,2614.1,4.07902199]
[1727186804345,0.38247,2614.4,2614.3,4.07902199]
[1727186804552,0.38247,2614.5,2614.1,4.07902199]
[1727186804756,3.2078,2614.7,2614.1,4.07902199]
[1727186804960,0.95591,2615.2,2613.7,7.86424]
[1727186804961,3.2078,2615.0,2614.4,0.38247]
[1727186805155,0.38243,2614.7,2614.3,0.38248]
[1727186805356,3.2078,2615.0,2614.5,0.3507]
[1727186805556,3.2078,2615.0,2614.4,4.20858155]
[1727186805759,3.2078,2615.5,2614.4,6.9078]
[1727186806055,0.38235,2615.3,2614.8,0.38241]
[1727186806255,4.1635,2615.8,2614.6,0.4724]
[1727186806463,0.38236,2615.2,2614.9,4.30522414]
[1727186806660,0.38233,2615.4,2614.8,0.38241]
[1727186806860,0.38234,2615.3,2614.8,4.34714453]
[1727186807156,0.38234,2615.3,2615.0,4.30522414]
[1727186807356,3.2078,2615.5,2614.9,4.31066756]
[1727186807556,0.38233,2615.4,2614.9,4.69305756]
[1727186807760,3.2078,2615.5,2615.1,4.31066756]
[1727186808058,3.2078,2615.5,2615.0,0.38238]
[1727186808059,3.2078,2615.5,2615.0,4.31066756]
[1727186808258,0.38234,2615.3,2615.2,4.25471047]
[1727186808559,0.38233,2615.4,2615.1,4.25471047]
[1727186808858,3.2078,2615.5,2615.2,4.25471047]
[1727186808859,3.59012,2615.5,2615.2,4.25471047]
[1727186809060,0.3823,2615.6,2615.1,0.38236]
[1727186809362,0.38231,2615.6,2615.3,4.36810866]
[1727186809564,0.38231,2615.5,2615.2,4.14131228]
[1727186809760,0.38231,2615.5,2615.1,3.2078]
[1727186809956,0.38233,2615.4,2615.3,4.24064183]
[1727186810355,0.38234,2615.3,2615.1,3.2078]
[1727186810549,3.2078,2615.5,2615.1,3.2078]
[1727186811057,3.2078,2615.5,2615.2,4.25446607]
[1727186811058,0.38234,2615.3,2615.2,4.25446607]
[1727186811256,3.59012,2615.5,2615.2,4.63681607]
[1727186811467,3.2078,2615.5,2615.3,0.38233]
[1727186811758,3.2078,2615.5,2615.2,4.25446607]
[1727186811759,3.59012,2615.5,2615.2,4.25446607]
[1727186811958,3.2078,2615.5,2615.2,4.63681607]
[1727186812159,3.2078,2615.5,2615.3,0.38234]
[1727186812361,3.2078,2615.8,2615.2,4.25446607]
[1727186812658,3.2078,2615.8,2615.4,4.0552785]
[1727186812962,4.16348,2615.8,2615.3,4.0552785]
[1727186813157,0.38232,2615.5,2615.2,4.08652727]
[1727186813347,3.2078,2615.8,2615.4,4.08652727]
[1727186813550,0.3823,2615.6,2615.4,4.08652727]
[1727186813751,0.3823,2615.6,2615.3,4.46885727]
[1727186813953,3.2078,2615.8,2615.5,4.08652727]
[1727186814159,0.38231,2615.5,2615.4,4.13660301]
[1727186814458,3.2078,2615.8,2615.4,0.38232]
[1727186814459,0.38228,2615.7,2615.4,0.38232]
[1727186814648,0.3823,2615.6,2615.4,4.22781992]
[1727186814853,0.38231,2615.5,2615.4,4.22781992]
[1727186815057,0.38233,2615.4,2615.2,3.80399745]
[1727186815248,3.59012,2615.5,2615.4,4.22781992]
[1727186815654,3.2078,2615.5,2615.2,4.18635745]
[1727186815854,3.59012,2615.5,2615.4,4.22781992]
[1727186816252,0.38233,2615.4,2615.2,0.38234]
[1727186816452,3.59012,2615.5,2615.4,3.98629226]
[1727186816653,3.2078,2615.5,2615.4,3.98629226]
[1727186816858,3.2078,2615.5,2615.1,3.2078]
[1727186817060,3.2078,2615.5,2615.4,4.04168014]
[1727186817255,3.2078,2615.5,2615.3,0.38233]
[1727186817455,3.2078,2615.5,2615.4,0.38233]
[1727186817660,3.2078,2615.5,2615.4,4.42401014]
[1727186817855,22.78924,2619.2,2616.1,0.38222]
[1727186817856,3.2078,2616.2,2616.1,0.38222]
[1727186818059,3.2078,2616.2,2615.4,13.98679]
[1727186818060,3.2078,2616.2,2616.0,0.38224]
[1727186818256,3.59001,2616.2,2615.9,0.38224]
[1727186818656,0.38219,2616.4,2616.1,0.38222]
[1727186819059,3.59,2616.3,2616.2,4.43178941]
[1727186819356,0.38222,2616.1,2615.8,0.38226]
[1727186819552,0.38222,2616.2,2615.9,0.38225]
[1727186819761,0.38221,2616.2,2615.9,4.53709453]
[1727186819961,3.7,2616.9,2615.6,3.2078]
[1727186819962,3.2078,2616.6,2615.6,3.2078]
[1727186820159,0.3822,2616.3,2616.0,0.38223]
[1727186820357,3.2078,2616.6,2616.5,0.38217]
[1727186820758,3.2078,2617.0,2616.5,4.17586669]
[1727186820958,0.0606,2617.5,2616.5,4.17586669]
[1727186820959,0.38215,2616.6,2616.5,4.17586669]
[1727186821165,4.16317,2616.7,2616.2,4.23735026]
[1727186821372,4.16317,2616.7,2616.1,0.83482]
[1727186821373,3.2078,2616.7,2616.1,0.4526]
[1727186821667,3.2078,2616.7,2616.4,0.38218]
[1727186821668,3.58995,2616.7,2616.4,0.38218]
[1727186821865,3.58994,2616.7,2616.4,0.38217]
[1727186822169,3.58994,2616.7,2616.1,0.4526]
[1727186822170,0.38215,2616.6,2616.5,4.12944103]
[1727186822469,3.58995,2616.7,2616.4,0.38217]
[1727186822861,3.2078,2616.7,2616.5,4.12944103]
[1727186823368,3.58995,2616.7,2616.4,4.79812753]
[1727186823667,3.58994,2616.7,2616.6,4.01454103]
[1727186823865,3.58994,2616.7,2616.4,0.38217]
[1727186823866,3.58994,2616.7,2616.5,4.41595753]
[1727186824066,3.58994,2616.7,2616.4,0.38217]
[1727186824270,3.58995,2616.7,2616.4,0.38217]
[1727186824475,3.58995,2616.7,2616.1,0.4526]
[1727186824476,3.83,2618.5,2616.6,6.9078]
[1727186824670,3.9109162,2619.5,2616.5,4.07381918]
[1727186824671,3.2078,2622.4,2619.8,0.95419]
[1727186824866,1.45741736,2623.9,2623.3,3.2078]
[1727186825169,0.18816041,2625.8,2624.2,5.64431483]
[1727186825371,3.73093643,2626.7,2625.7,6.9078]
[1727186825563,3.2078,2627.0,2625.7,3.7]
[1727186825762,3.8072,2626.9,2625.8,3.7]
[1727186825970,3.73093643,2627.0,2626.2,6.9078]
[1727186826268,0.38068,2626.7,2625.8,3.7]
[1727186826479,3.73093643,2627.0,2625.5,3.2078]
[1727186826661,3.73093643,2627.0,2626.1,3.2078]
[1727186826857,3.2078,2626.8,2626.1,3.2078]
[1727186827264,3.73093643,2626.8,2626.2,3.47399369]
[1727186827459,3.73093643,2626.8,2626.6,3.2078]
[1727186827659,3.73093643,2626.8,2626.4,3.2078]
[1727186827873,3.73093643,2626.8,2626.4,6.9078]
[1727186828066,3.73093643,2626.8,2626.7,3.2078]
[1727186828472,3.2078,2627.9,2626.7,11.04847375]
[1727186828667,3.2078,2628.6,2627.8,3.2078]
[1727186829176,3.8048,2628.5,2627.8,3.2078]
[1727186829469,6.93873643,2628.6,2627.4,3.7]
[1727186829672,6.93873643,2628.6,2626.5,3.2078]
[1727186829673,3.2078,2628.3,2626.5,3.2078]
[1727186829978,3.2078,2627.8,2627.2,3.2078]
[1727186830268,3.2078,2628.2,2627.1,3.2078]
[1727186830481,3.2078,2627.4,2626.1,8.17802679]
[1727186830673,3.2078,2627.4,2626.7,4.35315187]
[1727186830674,3.2078,2627.1,2626.7,4.35315187]
[1727186830975,3.73093643,2627.4,2626.2,8.17802679]
[1727186831171,3.2078,2627.1,2626.1,11.4918822]
[1727186831471,3.2078,2627.1,2626.5,3.72070061]
[1727186831662,3.73093643,2627.1,2626.2,3.65651723]
[1727186831862,3.73093643,2627.1,2626.1,0.3426]
[1727186832063,3.73093643,2627.1,2626.0,9.547]
[1727186832064,3.2078,2626.7,2626.0,9.547]
[1727186832265,0.52313643,2627.1,2626.0,9.547]
[1727186832266,3.2078,2626.9,2626.0,9.547]
[1727186832470,3.2078,2626.9,2626.1,4.0587971]
[1727186832668,0.52313643,2626.9,2626.7,3.2078]
[1727186833070,3.2078,2627.8,2626.8,8.21938788]
[1727186833262,3.73093643,2627.8,2626.8,4.41218788]
[1727186833472,3.2078,2627.7,2627.0,3.2078]
[1727186833667,0.52313643,2627.8,2627.1,6.9078]
[1727186833864,0.52313643,2627.8,2627.7,3.2078]
[1727186834066,0.52313643,2627.8,2627.6,3.7]
[1727186834268,0.0604,2628.9,2627.8,0.38052]
[1727186834472,0.58353643,2628.9,2628.1,3.2078]
[1727186834877,0.58353643,2628.9,2628.2,0.16466166]
[1727186835175,0.58353643,2628.9,2628.5,3.2078]
[1727186835376,0.52313643,2628.9,2628.6,3.7]
[1727186835675,0.52313643,2628.9,2628.6,3.99870959]
[1727186835879,0.52313643,2628.9,2628.5,3.2078]
[1727186836174,0.52313643,2628.9,2628.6,4.15672528]
[1727186836567,9.2078,2628.9,2628.0,3.2078]
[1727186836767,9.2078,2628.9,2627.8,3.2078]
[1727186836768,3.2078,2628.8,2627.8,3.2078]
[1727186836968,3.2078,2628.8,2628.1,7.36452528]
[1727186837171,3.2078,2628.8,2628.1,3.2078]
[1727186837172,3.73093643,2628.8,2628.1,3.2078]
[1727186837568,3.73093643,2628.8,2628.2,4.38907881]
[1727186837874,3.2078,2628.5,2628.1,3.2078]
[1727186838079,3.2078,2628.5,2627.6,3.2078]
[1727186838281,0.52313643,2628.5,2627.6,3.2078]
[1727186838583,0.52313643,2628.5,2627.7,4.33613408]
[1727186839076,0.90355643,2628.5,2627.9,3.2078]
[1727186839284,0.90355643,2628.5,2621.6,95.621]
[1727186839285,3.2078,2628.0,2626.8,3.2078]
[1727186839466,3.2078,2627.7,2626.8,3.2078]
[1727186839667,3.2078,2627.7,2626.9,3.76293025]
[1727186839976,0.52313643,2627.7,2626.9,3.2078]
[1727186840174,0.52313643,2627.7,2627.2,3.2078]
[1727186840473,0.52313643,2627.7,2627.3,3.72723339]
[1727186840683,0.52313643,2627.7,2627.3,6.93503339]
[1727186840873,4.32873643,2627.7,2627.0,3.2078]
[1727186841074,0.52313643,2627.7,2627.1,3.2078]
[1727186841275,0.52313643,2627.7,2627.4,4.17904131]
[1727186841475,0.52313643,2627.7,2627.4,3.2078]
[1727186841674,0.52313643,2627.7,2627.5,4.17904131]
[1727186842077,3.2078,2627.7,2627.0,2.68466357]
[1727186842284,3.2078,2627.7,2626.3,5.55]
[1727186842285,0.38056,2627.6,2626.5,3.58851]
[1727186842575,0.38051,2627.9,2627.0,7.55871085]
[1727186842776,3.2078,2628.0,2627.3,3.2078]
[1727186843178,3.8056,2627.9,2627.4,4.13103961]
[1727186843478,1.41754,2628.3,2627.6,3.2078]
[1727186843479,0.4664,2628.3,2627.6,3.2078]
[1727186843777,3.2078,2628.8,2627.9,3.2078]
[1727186843971,3.2078,2628.8,2628.2,3.2078]
[1727186844170,3.2078,2628.8,2627.8,3.2078]
[1727186844370,0.95089,2629.0,2627.8,3.2078]
[1727186844371,0.38047,2628.2,2627.8,3.2078]
[1727186844679,0.38048,2628.1,2627.8,3.2078]
[1727186844876,3.2078,2628.5,2627.8,3.2078]
[1727186845075,0.38047,2628.2,2627.7,3.2078]
[1727186845272,3.8048,2628.4,2627.3,3.2078]
[1727186845468,3.8048,2628.4,2627.2,4.0954212]
[1727186845469,3.2078,2627.8,2627.2,4.0954212]
[1727186845670,3.2078,2627.8,2626.9,3.2078]
[1727186845874,0.95114,2628.3,2627.0,4.0954212]
[1727186845875,3.2078,2628.1,2627.0,4.0954212]
[1727186846177,3.2078,2628.0,2626.9,3.2078]
[1727186846370,3.2078,2628.0,2627.0,3.98331249]
[1727186846570,3.2078,2628.0,2627.5,3.2078]
[1727186846775,3.2078,2628.4,2627.5,3.2078]
[1727186847077,0.38046,2628.3,2627.6,3.98331249]
[1727186847278,0.38046,2628.3,2627.5,3.2078]
[1727186847473,3.2078,2628.4,2627.8,3.2078]